fUSD/lending_fUSD_20240714
["ID","MTS","AMOUNT","RATE_DAILY","PERIOD"]
[332151318,1720991445410,-500.0,0.00013953,2]
[332151320,1720991445419,-500.0,0.00013953,2]
[332151322,1720991445428,-500.0,0.00013953,2]
[332151324,1720991445437,-500.0,0.00013953,2]
[332151325,1720991445445,-500.0,0.00013953,2]
[332151327,1720991445455,-500.0,0.00013953,2]
[332151329,1720991445463,-500.0,0.00013953,2]
[332151331,1720991445473,-500.0,0.00013953,2]
[332151333,1720991445484,-500.0,0.00013953,2]
[332151335,1720991445495,-500.0,0.00013953,2]
[332151337,1720991445504,-500.0,0.00013953,2]
[332151339,1720991445513,-500.0,0.00013953,2]
[332151341,1720991445522,-500.0,0.00013953,2]
[332151343,1720991445531,-500.0,0.00013953,2]
[332151345,1720991445540,-500.0,0.00013953,2]
[332151347,1720991445549,-500.0,0.00013953,2]
[332151349,1720991445558,-500.0,0.00013953,2]
[332151351,1720991445567,-500.0,0.00013953,2]
[332151352,1720991445578,-500.0,0.00013953,2]
[332151354,1720991445587,-500.0,0.00013953,2]
[332151356,1720991445597,-500.0,0.00013953,2]
[332151358,1720991445610,-500.0,0.00013953,2]
[332151361,1720991445620,-1941.34,0.00013953,2]
[332151362,1720991445629,-500.0,0.00013953,2]
[332151364,1720991445639,-500.0,0.00013953,2]
[332151366,1720991445648,-500.0,0.00013953,2]
[332151368,1720991445657,-500.0,0.00013953,2]
[332151370,1720991445666,-500.0,0.00013953,2]
[332151372,1720991445675,-500.0,0.00013953,2]
[332151374,1720991445684,-500.0,0.00013953,2]
[332151376,1720991445694,-500.0,0.00013953,2]
[332151378,1720991445703,-500.0,0.00013953,2]
[332151380,1720991445712,-500.0,0.00013953,2]
[332151382,1720991445721,-500.0,0.00013953,2]
[332151384,1720991445734,-500.0,0.00013953,2]
[332151386,1720991445743,-500.0,0.00013953,2]
[332151388,1720991445754,-500.0,0.00013953,2]
[332151390,1720991445763,-500.0,0.00013953,2]
[332151392,1720991445772,-500.0,0.00013953,2]
[332151394,1720991445781,-500.0,0.00013953,2]
[332151396,1720991445791,-500.0,0.00013953,2]
[332151398,1720991445800,-500.0,0.00013953,2]
[332151400,1720991445810,-500.0,0.00013953,2]
[332151402,1720991445819,-343.34770885,0.00013953,2]
[332151404,1720991445828,-500.0,0.00013953,2]
[332151406,1720991445838,-500.0,0.00013953,2]
[332151408,1720991445846,-500.0,0.00013953,2]
[332151410,1720991445855,-500.0,0.00013953,2]
[332151411,1720991445864,-500.0,0.00013953,2]
[332151413,1720991445873,-500.0,0.00013953,2]
[332151415,1720991445882,-500.0,0.00013953,2]
[332151418,1720991445890,-500.0,0.00013953,2]
[332151421,1720991445899,-500.0,0.00013953,2]
[332151423,1720991445909,-500.0,0.00013953,2]
[332151425,1720991445918,-500.0,0.00013953,2]
[332151427,1720991445928,-500.0,0.00013953,2]
[332151429,1720991445937,-500.0,0.00013953,2]
[332151431,1720991445946,-500.0,0.00013953,2]
[332151433,1720991445955,-500.0,0.00013953,2]
[332151435,1720991445964,-500.0,0.00013953,2]
[332151437,1720991445973,-476.43960133,0.00013953,2]
[332151439,1720991445985,-500.0,0.00013953,2]
[332151442,1720991445994,-500.0,0.00013953,2]
[332151445,1720991446003,-500.0,0.00013953,2]
[332151447,1720991446012,-500.0,0.00013953,2]
[332151450,1720991446021,-500.0,0.00013953,2]
[332151453,1720991446031,-386.32417508,0.00013953,2]
[332151456,1720991446041,-500.0,0.00013953,2]
[332151459,1720991446050,-500.0,0.00013953,2]
[332151463,1720991446059,-501.66,0.00013953,2]
[332151466,1720991446068,-500.0,0.00013953,2]
[332151469,1720991446077,-500.0,0.00013953,2]
[332151472,1720991446086,-500.0,0.00013953,2]
[332151475,1720991446095,-500.0,0.00013953,2]
[332151478,1720991446105,-500.0,0.00013953,2]
[332151481,1720991446114,-500.0,0.00013953,2]
[332151484,1720991446124,-500.0,0.00013953,2]
[332151487,1720991446134,-500.0,0.00013953,2]
[332151490,1720991446144,-500.0,0.00013953,2]
[332151493,1720991446153,-500.0,0.00013953,2]
[332151495,1720991446163,-500.0,0.00013953,2]
[332151497,1720991446173,-500.0,0.00013953,2]
[332151499,1720991446182,-500.0,0.00013953,2]
[332151501,1720991446192,-500.0,0.00013953,2]
[332151503,1720991446202,-500.0,0.00013953,2]
[332151505,1720991446212,-354.85623838,0.00013953,2]
[332151507,1720991446221,-500.0,0.00013953,2]
[332151509,1720991446233,-500.0,0.00013953,2]
[332151511,1720991446243,-500.0,0.00013953,2]
[332151513,1720991446253,-500.0,0.00013953,2]
[332151515,1720991446263,-500.0,0.00013953,2]
[332151517,1720991446272,-500.0,0.00013953,2]
[332151519,1720991446282,-500.0,0.00013953,2]
[332151521,1720991446292,-500.0,0.00013953,2]
[332151524,1720991446303,-500.0,0.00013953,2]
[332151526,1720991446312,-500.0,0.00013953,2]
[332151528,1720991446322,-500.0,0.00013953,2]
[332151530,1720991446331,-500.0,0.00013953,2]
[332151532,1720991446341,-500.0,0.00013953,2]
[332151534,1720991446351,-462.63533202,0.00013953,2]
[332151536,1720991446360,-500.0,0.00013954,2]
[332151538,1720991446370,-500.0,0.00013954,2]
[332151540,1720991446379,-500.0,0.00013954,2]
[332151542,1720991446389,-500.0,0.00013954,2]
[332151544,1720991446398,-500.0,0.00013954,2]
[332151546,1720991446408,-500.0,0.00013954,2]
[332151548,1720991446418,-500.0,0.00013954,2]
[332151550,1720991446427,-500.0,0.00013954,2]
[332151551,1720991446436,-500.0,0.00013954,2]
[332151553,1720991446446,-500.0,0.00013954,2]
[332151555,1720991446455,-500.0,0.00013954,2]
[332151557,1720991446464,-500.0,0.00013954,2]
[332151559,1720991446474,-500.0,0.00013954,2]
[332151561,1720991446485,-500.0,0.00013954,2]
[332151563,1720991446495,-500.0,0.00013954,2]
[332151566,1720991446506,-500.0,0.00013954,2]
[332151568,1720991446516,-500.0,0.00013954,2]
[332151570,1720991446526,-500.0,0.00013954,2]
[332151572,1720991446536,-500.0,0.00013954,2]
[332151574,1720991446547,-500.0,0.00013954,2]
[332151576,1720991446557,-500.0,0.00013954,2]
[332151578,1720991446567,-500.0,0.00013954,2]
[332151580,1720991446577,-500.0,0.00013954,2]
[332151582,1720991446586,-500.0,0.00013954,2]
[332151584,1720991446602,-500.0,0.00013954,2]
[332151586,1720991446611,-523.04,0.00013954,2]
[332151587,1720991446621,-500.0,0.00013954,2]
[332151588,1720991446631,-500.0,0.00013954,2]
[332151589,1720991446640,-593.16,0.00013954,2]
[332151590,1720991446650,-546.56312412,0.00013954,2]
[332151591,1720991446659,-500.0,0.00013954,2]
[332151592,1720991446670,-500.0,0.00013954,2]
[332151593,1720991446680,-500.0,0.00013954,2]
[332151594,1720991446690,-500.0,0.00013954,2]
[332151595,1720991446699,-562.36,0.00013954,2]
[332151596,1720991446709,-500.0,0.00013954,2]
[332151597,1720991446719,-500.0,0.00013954,2]
[332151598,1720991446729,-500.0,0.00013954,2]
[332151599,1720991446740,-500.0,0.00013954,2]
[332151601,1720991446749,-500.0,0.00013954,2]
[332151603,1720991446760,-500.0,0.00013954,2]
[332151605,1720991446769,-500.0,0.00013954,2]
[332151607,1720991446780,-500.0,0.00013954,2]
[332151609,1720991446789,-500.0,0.00013954,2]
[332151611,1720991446800,-500.0,0.00013954,2]
[332151613,1720991446810,-500.0,0.00013954,2]
[332151615,1720991446820,-500.0,0.00013954,2]
[332151617,1720991446830,-500.0,0.00013954,2]
[332151619,1720991446840,-151.0,0.00013954,2]
[332151621,1720991446850,-500.0,0.00013954,2]
[332151623,1720991446860,-500.0,0.00013954,2]
[332151625,1720991446870,-500.0,0.00013954,2]
[332151627,1720991446880,-500.0,0.00013954,2]
[332151629,1720991446889,-500.0,0.00013954,2]
[332151631,1720991446899,-500.0,0.00013954,2]
[332151633,1720991446910,-624.16,0.00013954,2]
[332151635,1720991446920,-500.0,0.00013954,2]
[332151637,1720991446930,-500.0,0.00013954,2]
[332151639,1720991446940,-500.0,0.00013954,2]
[332151641,1720991446950,-500.0,0.00013954,2]
[332151643,1720991446961,-500.0,0.00013954,2]
[332151645,1720991446972,-500.0,0.00013954,2]
[332151647,1720991446983,-500.0,0.00013954,2]
[332151649,1720991446994,-500.0,0.00013954,2]
[332151651,1720991447004,-518.12,0.00013954,2]
[332151653,1720991447015,-500.0,0.00013954,2]
[332151655,1720991447025,-500.0,0.00013954,2]
[332151657,1720991447036,-500.0,0.00013954,2]
[332151660,1720991447046,-500.0,0.00013954,2]
[332151662,1720991447055,-500.0,0.00013954,2]
[332151664,1720991447066,-500.0,0.00013954,2]
[332151666,1720991447075,-500.0,0.00013954,2]
[332151668,1720991447085,-500.0,0.00013954,2]
[332151670,1720991447095,-268.665504,0.00013954,2]
[332151672,1720991447106,-500.0,0.00013954,2]
[332151674,1720991447116,-500.0,0.00013954,2]
[332151676,1720991447126,-500.0,0.00013954,2]
[332151678,1720991447135,-500.0,0.00013954,2]
[332151680,1720991447145,-500.0,0.00013954,2]
[332151682,1720991447155,-500.0,0.00013954,2]
[332151684,1720991447165,-500.0,0.00013954,2]
[332151686,1720991447174,-500.0,0.00013954,2]
[332151688,1720991447184,-500.0,0.00013954,2]
[332151690,1720991447194,-500.0,0.00013954,2]
[332151692,1720991447204,-500.0,0.00013954,2]
[332151694,1720991447214,-500.0,0.00013954,2]
[332151696,1720991447224,-500.0,0.00013954,2]
[332151698,1720991447234,-500.0,0.00013954,2]
[332151700,1720991447244,-303.71725059,0.00013954,2]
[332151702,1720991447255,-550.08,0.00013954,2]
[332151704,1720991447265,-500.0,0.00013954,2]
[332151706,1720991447277,-500.0,0.00013954,2]
[332151708,1720991447287,-500.0,0.00013954,2]
[332151710,1720991447298,-500.0,0.00013954,2]
[332151712,1720991447308,-500.0,0.00013954,2]
[332151715,1720991447318,-500.0,0.00013954,2]
[332151717,1720991447329,-500.0,0.00013954,2]
[332151719,1720991447339,-500.0,0.00013954,2]
[332151721,1720991447349,-500.0,0.00013954,2]
[332151723,1720991447359,-500.0,0.00013954,2]
[332151725,1720991447371,-500.0,0.00013954,2]
[332151727,1720991447380,-500.0,0.00013954,2]
[332151729,1720991447391,-500.0,0.00013954,2]
[332151731,1720991447402,-500.0,0.00013954,2]
[332151733,1720991447412,-182.88,0.00013954,2]
[332151735,1720991447421,-500.0,0.00013954,2]
[332151737,1720991447431,-500.0,0.00013954,2]
[332151739,1720991447441,-500.0,0.00013954,2]
[332151741,1720991447450,-500.0,0.00013954,2]
[332151743,1720991447461,-500.0,0.00013954,2]
[332151745,1720991447471,-500.0,0.00013954,2]
[332151747,1720991447482,-500.0,0.00013954,2]
[332151750,1720991447492,-728.64,0.00013954,2]
[332151751,1720991447502,-500.0,0.00013954,2]
[332151754,1720991447515,-500.0,0.00013954,2]
[332151756,1720991447525,-500.0,0.00013954,2]
[332151758,1720991447535,-500.0,0.00013954,2]
[332151760,1720991447544,-653.02,0.00013954,2]
[332151762,1720991447553,-500.0,0.00013954,2]
[332151764,1720991447563,-954.06,0.00013954,2]
[332151765,1720991447572,-634.21,0.00013954,2]
[332151767,1720991447582,-500.0,0.00013954,2]
[332151769,1720991447592,-619.58,0.00013954,2]
[332151771,1720991447603,-500.0,0.00013954,2]
[332151773,1720991447613,-500.0,0.00013954,2]
[332151775,1720991447624,-500.0,0.00013954,2]
[332151777,1720991447633,-500.0,0.00013954,2]
[332151779,1720991447643,-500.0,0.00013954,2]
[332151781,1720991447652,-500.0,0.00013954,2]
[332151783,1720991447662,-500.0,0.00013954,2]
[332151785,1720991447671,-500.0,0.00013954,2]
[332151787,1720991447680,-500.0,0.00013954,2]
[332151789,1720991447690,-500.0,0.00013954,2]
[332151791,1720991447699,-1268.0,0.00013954,2]
[332151793,1720991447709,-500.0,0.00013954,2]
[332151795,1720991447718,-500.0,0.00013954,2]
[332151797,1720991447727,-500.0,0.00013954,2]
[332151800,1720991447737,-500.0,0.00013954,2]
[332151802,1720991447746,-500.0,0.00013954,2]
[332151804,1720991447756,-258.15254213,0.00013954,2]
[332151806,1720991447765,-500.0,0.00013954,2]
[332151808,1720991447775,-500.0,0.00013954,2]
[332151810,1720991447785,-500.0,0.00013954,2]
[332151812,1720991447794,-500.0,0.00013954,2]
[332151814,1720991447803,-500.0,0.00013954,2]
[332151816,1720991447813,-500.0,0.00013954,2]
[332151818,1720991447823,-500.0,0.00013954,2]
[332151820,1720991447832,-1223.37,0.00013954,2]
[332151822,1720991447841,-500.0,0.00013954,2]
[332151824,1720991447850,-500.0,0.00013954,2]
[332151826,1720991447860,-500.0,0.00013954,2]
[332151828,1720991447870,-1556.11,0.00013954,2]
[332151830,1720991447880,-500.0,0.00013954,2]
[332151832,1720991447890,-1043.46,0.00013954,2]
[332151834,1720991447899,-500.0,0.00013954,2]
[332151836,1720991447909,-500.0,0.00013954,2]
[332151838,1720991447918,-500.0,0.00013954,2]
[332151840,1720991447928,-500.0,0.00013954,2]
[332151842,1720991447938,-151.0,0.0001397,2]
[332151845,1720991447948,-151.0,0.0001397,2]
[332151847,1720991447960,-206.336997,0.0001397,2]
[332151849,1720991447971,-206.336997,0.0001397,2]
[332151851,1720991447980,-151.0,0.0001397,2]
[332151853,1720991447990,-151.0,0.0001397,2]
[332151855,1720991447999,-151.0,0.0001397,2]
[332151857,1720991448010,-285.474888,0.0001397,2]
[332151858,1720991448019,-151.0,0.0001397,2]
[332151860,1720991448029,-151.0,0.0001397,2]
[332151862,1720991448039,-1328.848424,0.00013973,2]
[332151864,1720991448050,-1000.0,0.00013973,5]
[332151865,1720991448059,-151.0,0.0001398,2]
[332151867,1720991448069,-151.0,0.0001398,2]
[332151869,1720991448078,-155.40245822,0.00013989,2]
[332151871,1720991448088,-210.46747941,0.00013989,2]
[332151873,1720991448097,-151.0,0.0001399,2]
[332151874,1720991448107,-151.0,0.0001399,2]
[332151876,1720991448116,-151.0,0.0001399,2]
[332151878,1720991448127,-150.0,0.00013997,2]
[332151880,1720991448137,-6407.6936869,0.00013998,2]
[332151882,1720991448147,-252.11702169,0.00013999,2]
[332151883,1720991448157,-276.42924477,0.00013999,2]
[332151885,1720991448167,-551787.14099456,0.00014,2]
[332151887,1720991448183,-1192.8949193,0.00014,2]
[332151921,1720991448574,-269.96247161,0.00013472,2]
[332151923,1720991448584,-30.03853239,0.00013789,2]
[332151925,1720991448596,-1056.84146761,0.00013789,2]
[332151927,1720991448610,-287.90422067,0.00013844,2]
[332151929,1720991448619,-145.69082059,0.00013844,2]
[332151931,1720991448630,-354.23051344,0.00013844,2]
[332151933,1720991448641,-586.95866597,0.00013844,2]
[332151935,1720991448653,-1077.74133403,0.00013877,2]
[332151942,1720991448720,-2297.4020911,0.00013877,2]
[332151944,1720991448732,-6693.72403782,0.00013877,2]
[332151946,1720991448742,-1086.88,0.00013899,2]
[332151948,1720991448752,-714.1829784,0.000139,2]
[332151950,1720991448763,-1649.61662116,0.000139,2]
[332151952,1720991448774,-6323.88670035,0.000139,2]
[332151954,1720991448784,-1086.88,0.00013954,2]
[332151956,1720991448794,-27332.09593062,0.00014,2]
[332151958,1720991448806,-586.2440006,0.00014,2]
[332151971,1720991448947,-104020.66839758,0.00014,2]
[332151988,1720991449122,-1477.93478954,0.000139,2]
[332151990,1720991449134,-8590.93267341,0.000139,2]
[332151992,1720991449144,-172408.06732613,0.00014,2]
[332151994,1720991449157,-61154.83139741,0.00014,2]
[332151996,1720991449166,-33420.60134673,0.00014,2]
[332151998,1720991449177,-702.22,0.00014,2]
[332152000,1720991449194,-1388.82081271,0.00014,2]
[332152002,1720991449205,-911.09321924,0.00014,2]
[332152136,1720991450693,-336.15602891,0.00013999,2]
[332152139,1720991450702,-22682.08907284,0.00014,2]
[332153175,1720991482379,150.0,0.00027,120]
[332153201,1720991892470,-423.248988,0.00010021,2]
[332153202,1720991892494,-5680.7412456,0.00010072,2]
[332153203,1720991892520,-300.0,0.00010171,2]
[332153204,1720991892544,-5606.142,0.00010172,2]
[332153205,1720991892568,-463.56,0.0001068,2]
[332153206,1720991892592,-721.0,0.00011,2]
[332153207,1720991892617,-420.0,0.00011186,2]
[332153208,1720991892641,-19647.48260334,0.00011199,2]
[332153209,1720991943730,219.58774075,0.00011199,2]
[332153210,1720992001564,184.74,0.00010959,2]
[332153211,1720992012067,153.95,0.00010959,2]
[332153212,1720992022598,769.77,0.00010959,2]
[332153214,1720992031745,155.0,0.00010959,2]
[332153221,1720992119746,155.0,0.00010959,2]
[332153224,1720992206777,155.0,0.00010959,2]
[332153226,1720992303764,155.0,0.00010959,2]
[332153228,1720992321302,5397.32868422,9e-05,2]
[332153231,1720992337529,460.7,9.818e-05,2]
[332153233,1720992398760,155.0,9.818e-05,2]
[332153234,1720992414767,155.0,9.818e-05,2]
[332153243,1720992529820,155.0,9.818e-05,2]
[332153247,1720992545769,155.0,9.818e-05,2]
[332153295,1720992633704,-300.0,0.00011097,2]
[332153296,1720992633713,-150.0,0.00011097,2]
[332153297,1720992633723,-5363.10700422,0.00011098,2]
[332153298,1720992633733,-158.22134904,0.00011098,2]
[332153299,1720992633742,-192.67415438,0.00011098,2]
[332153300,1720992633752,-475.9304479,0.00011098,2]
[332153302,1720992634055,-206.42391307,0.00011098,2]
[332153304,1720992634071,-155.0,0.00011098,2]
[332153306,1720992634080,-155.0,0.00011098,2]
[332153307,1720992634090,-438.05939194,0.00011098,2]
[332153309,1720992634099,-166.66036318,0.00011098,2]
[332153311,1720992634108,-431.53343721,0.00011098,2]
[332153313,1720992634117,-242.65178278,0.00011098,2]
[332153315,1720992634126,-366.11090361,0.00011098,2]
[332153316,1720992634136,-412.23419476,0.00011098,2]
[332153318,1720992634145,-379.089191,0.00011098,2]
[332153320,1720992634155,-155.0,0.00011098,2]
[332153322,1720992634164,-411.48559901,0.00011098,2]
[332153324,1720992634173,-407.49180447,0.00011098,2]
[332153325,1720992634183,-155.0,0.00011098,2]
[332153327,1720992634195,-1631.66433065,0.00011098,2]
[332153329,1720992634205,-206.91753885,0.00011098,2]
[332153331,1720992634214,-155.0,0.00011098,2]
[332153333,1720992634223,-229.13265735,0.00011098,2]
[332153334,1720992634232,-155.0,0.00011098,2]
[332153336,1720992634242,-276.31420201,0.00011098,2]
[332153338,1720992634251,-155.19831752,0.00011098,2]
[332153339,1720992634261,-329.22275465,0.00011098,2]
[332153341,1720992634270,-155.0,0.00011098,2]
[332153342,1720992634279,-235.86876767,0.00011197,2]
[332153343,1720992634288,-305.84675741,0.00011197,2]
[332153344,1720992634300,-365.87054472,0.00011199,2]
[332153345,1720992634310,-626.30206607,0.00011199,2]
[332153346,1720992634319,-2374.66560642,0.00011199,2]
[332153347,1720992634329,-500.0,0.00011541,2]
[332153348,1720992634339,-608.54,0.00011545,2]
[332153349,1720992634347,-164.48,0.00011584,2]
[332153350,1720992634357,-503.88,0.00011584,2]
[332153351,1720992634366,-250.0,0.00011602,2]
[332153352,1720992634375,-8537.91,0.00011611,2]
[332153353,1720992634385,-250.0,0.00011638,2]
[332153354,1720992634394,-1507.95,0.0001164,2]
[332153355,1720992634403,-150.99,0.00011969,2]
[332153356,1720992634412,-150.0,0.00011969,2]
[332153357,1720992634422,-200.0,0.0001207,2]
[332153358,1720992634431,-460.7,0.00012082,2]
[332153359,1720992634440,-389.69,0.00012092,2]
[332153360,1720992634449,-13473.51,0.00012146,2]
[332153361,1720992634459,-235.99,0.00012168,2]
[332153362,1720992634468,-420.0,0.00012193,2]
[332153363,1720992634478,-307.69,0.00012251,2]
[332153364,1720992634487,-1706.01053776,0.00012302,2]
[332153365,1720992634497,-303.08,0.00012472,2]
[332153366,1720992634506,-321.97,0.00012472,2]
[332153367,1720992634515,-906.73,0.00012472,2]
[332153368,1720992634524,-2524.31,0.00012472,2]
[332153369,1720992634533,-150.99,0.00012472,2]
[332153370,1720992634543,-499.99,0.00012472,2]
[332153371,1720992634553,-500.0,0.00012506,2]
[332153372,1720992634562,-1000.0,0.00012548,2]
[332153373,1720992634571,-167.77,0.00012898,2]
[332153374,1720992634582,-400.0,0.00013,4]
[332153375,1720992634591,-419.63,0.00013096,2]
[332153376,1720992634600,-419.63,0.00013096,2]
[332153377,1720992634609,-419.03,0.00013096,2]
[332153378,1720992634619,-800.0,0.000131,4]
[332153379,1720992634628,-1200.0,0.000132,4]
[332153380,1720992634637,-205254.0,0.00013264,2]
[332153381,1720992634647,-1700.0,0.000133,4]
[332153382,1720992634656,-2500.0,0.00013386,2]
[332153383,1720992634665,-587.0,0.00013398,2]
[332153384,1720992634674,-2100.0,0.000134,4]
[332153385,1720992634683,-400.0,0.000135,4]
[332153386,1720992634692,-848.295,0.00013527,2]
[332153387,1720992634701,-173.47,0.00013552,2]
[332153388,1720992634711,-400.0,0.000136,4]
[332153389,1720992634720,-212.7818,0.00013616,2]
[332153390,1720992634729,-206.92832689,0.00013653,2]
[332153391,1720992634738,-12491.4995,0.00013689,2]
[332153392,1720992634747,-23424.2169,0.00013689,2]
[332153393,1720992634756,-4368.4282,0.00013689,2]
[332153394,1720992634765,-302.85528588,0.00013694,2]
[332153395,1720992634774,-500.0,0.00013698,2]
[332153396,1720992634783,-500.0,0.00013698,2]
[332153397,1720992634793,-500.0,0.00013698,2]
[332153398,1720992634802,-500.0,0.00013698,2]
[332153399,1720992634811,-500.0,0.00013698,2]
[332153400,1720992634820,-500.0,0.00013698,2]
[332153401,1720992634829,-150.0,0.00013698,2]
[332153402,1720992634838,-500.0,0.00013698,2]
[332153403,1720992634847,-500.0,0.00013698,2]
[332153404,1720992634856,-500.0,0.00013698,2]
[332153405,1720992634866,-500.0,0.00013698,2]
[332153406,1720992634875,-500.0,0.00013698,2]
[332153407,1720992634884,-500.0,0.00013698,2]
[332153408,1720992634893,-500.0,0.00013698,2]
[332153409,1720992634903,-500.0,0.00013698,2]
[332153410,1720992634912,-500.0,0.00013698,2]
[332153411,1720992634921,-500.0,0.00013698,2]
[332153412,1720992634931,-500.0,0.00013698,2]
[332153413,1720992634941,-500.0,0.00013698,2]
[332153414,1720992634950,-500.0,0.00013698,2]
[332153415,1720992634959,-500.0,0.00013698,2]
[332153416,1720992634969,-500.0,0.00013698,2]
[332153417,1720992634978,-500.0,0.00013698,2]
[332153418,1720992634988,-500.0,0.00013698,2]
[332153419,1720992634997,-500.0,0.00013698,2]
[332153420,1720992635006,-500.0,0.00013698,2]
[332153421,1720992635015,-500.0,0.00013698,2]
[332153422,1720992635024,-669.79,0.00013698,2]
[332153423,1720992635034,-500.0,0.00013698,2]
[332153424,1720992635044,-500.0,0.00013698,2]
[332153425,1720992635054,-296.27726086,0.00013698,2]
[332153426,1720992635064,-500.0,0.00013698,2]
[332153427,1720992635073,-500.0,0.00013698,2]
[332153428,1720992635083,-500.0,0.00013698,2]
[332153429,1720992635092,-500.0,0.00013698,2]
[332153430,1720992635101,-500.0,0.00013698,2]
[332153431,1720992635110,-500.0,0.00013698,2]
[332153432,1720992635119,-606.68,0.00013698,2]
[332153433,1720992635129,-500.0,0.00013698,2]
[332153434,1720992635138,-500.0,0.00013698,2]
[332153435,1720992635147,-921.18,0.00013698,2]
[332153436,1720992635156,-500.0,0.00013698,2]
[332153437,1720992635165,-500.0,0.00013698,2]
[332153438,1720992635175,-617.08,0.00013698,2]
[332153439,1720992635184,-500.0,0.00013698,2]
[332153440,1720992635197,-500.0,0.00013698,2]
[332153441,1720992635206,-500.0,0.00013698,2]
[332153442,1720992635215,-500.0,0.00013698,2]
[332153443,1720992635224,-500.0,0.00013698,2]
[332153444,1720992635234,-500.0,0.00013698,2]
[332153445,1720992635243,-500.0,0.00013698,2]
[332153446,1720992635252,-263.19354343,0.00013698,2]
[332153447,1720992635261,-500.0,0.00013698,2]
[332153448,1720992635271,-500.0,0.00013698,2]
[332153449,1720992635281,-500.0,0.00013698,2]
[332153450,1720992635290,-500.0,0.00013698,2]
[332153451,1720992635300,-500.0,0.00013698,2]
[332153452,1720992635309,-500.0,0.00013698,2]
[332153453,1720992635318,-500.0,0.00013698,2]
[332153454,1720992635328,-935.03,0.00013698,2]
[332153455,1720992635337,-500.0,0.00013698,2]
[332153456,1720992635346,-500.0,0.00013698,2]
[332153457,1720992635355,-500.0,0.00013698,2]
[332153458,1720992635365,-500.0,0.00013698,2]
[332153459,1720992635374,-500.0,0.00013698,2]
[332153460,1720992635383,-1102.38,0.00013698,2]
[332153461,1720992635393,-500.0,0.00013698,2]
[332153462,1720992635404,-500.0,0.00013698,2]
[332153463,1720992635415,-500.0,0.00013698,2]
[332153464,1720992635426,-500.0,0.00013698,2]
[332153465,1720992635436,-500.0,0.00013698,2]
[332153466,1720992635446,-500.0,0.00013698,2]
[332153467,1720992635457,-500.0,0.00013698,2]
[332153468,1720992635469,-500.0,0.00013698,2]
[332153469,1720992635479,-500.0,0.00013698,2]
[332153470,1720992635490,-500.0,0.00013698,2]
[332153471,1720992635500,-500.0,0.00013698,2]
[332153472,1720992635511,-500.0,0.00013698,2]
[332153473,1720992635522,-1256.74,0.00013698,2]
[332153474,1720992635533,-500.0,0.00013698,2]
[332153475,1720992635544,-500.0,0.00013698,2]
[332153476,1720992635553,-500.0,0.00013698,2]
[332153477,1720992635562,-500.0,0.00013698,2]
[332153478,1720992635571,-500.0,0.00013698,2]